bitfinex/quotes_ETHUSD_20220308
["timestamp","ask_amount","ask_price","bid_price","bid_amount"]
[1646727504029,1.083,2557.0,2556.8,0.1954]
[1646727504329,1.574,2556.9,2556.8,0.1954]
[1646727504532,2.574,2556.9,2556.8,0.1954]
[1646727504735,6.26956751,2556.9,2556.8,0.1954]
[1646727504932,1.083,2556.7,2556.2,5.65117236]
[1646727505133,5.5,2556.8,2555.7,21.69973573]
[1646727505134,1.083,2556.5,2555.7,21.69973573]
[1646727505332,1.083,2556.3,2555.7,27.35090809]
[1646727505534,0.491,2556.2,2555.8,1.07511387]
[1646727505834,1.083,2556.1,2555.8,1.07511387]
[1646727506033,1.083,2556.1,2556.0,2.70512713]
[1646727506232,3.53198,2556.1,2556.0,2.70512713]
[1646727506638,1.5742,2556.1,2556.0,2.70512713]
[1646727506937,2.19396,2556.2,2556.0,2.69973573]
[1646727507140,1.21498,2556.2,2556.0,2.69973573]
[1646727508406,0.97874,2556.3,2556.0,2.70512713]
[1646727508606,0.97874,2556.3,2556.2,1.01212458]
[1646727508805,0.97874,2556.3,2556.2,9.36303267]
[1646727509004,0.97874,2556.3,2556.2,8.35090809]
[1646727510406,1.97874,2556.3,2556.2,8.35090809]
[1646727510808,0.97874,2556.3,2556.2,8.35090809]
[1646727511230,1.97874,2556.3,2556.2,8.35090809]
[1646727511431,4.47874,2556.3,2556.2,8.35090809]
[1646727512234,3.5,2556.3,2556.2,8.35090809]
[1646727512436,1.1955,2556.8,2556.2,8.35090809]
[1646727512641,1.1955,2556.8,2556.1,1.71063912]
[1646727512642,1.1955,2556.8,2556.7,8.35090809]
[1646727512837,0.57881455,2556.9,2556.7,8.35090809]
[1646727513437,1.0,2557.1,2556.7,8.35090809]
[1646727513638,1.0,2557.1,2557.0,8.35090809]
[1646727513841,0.60512113,2557.5,2557.0,9.32931739]
[1646727513842,1.0,2557.2,2557.0,9.32931739]
[1646727514339,3.5,2557.4,2557.0,9.32931739]
[1646727514540,1.0,2557.6,2557.3,8.35090809]
[1646727514739,0.00507094,2557.8,2557.5,2.69973573]
[1646727514740,1.00507094,2557.8,2557.5,2.69973573]
[1646727514986,1.98324094,2557.8,2557.7,8.35090809]
[1646727515192,0.00507094,2557.8,2557.7,8.35090809]
[1646727515390,5.18536803,2558.0,2557.7,8.35090809]
[1646727515590,5.18536803,2558.0,2557.9,2.69973573]
[1646727515591,4.10384549,2558.0,2557.9,2.69973573]
[1646727515989,3.90854549,2558.0,2557.9,2.69973573]
[1646727516190,1.38663549,2558.0,2557.9,3.64977399]
[1646727516590,1.38663549,2558.0,2557.9,2.69973573]
[1646727517090,2.87763549,2558.0,2557.9,2.69973573]
[1646727517590,2.87763549,2558.0,2557.9,3.80847595]
[1646727518493,2.87763549,2558.0,2557.9,3.45847595]
[1646727518736,2.87763549,2558.0,2557.9,2.34973573]
[1646727518928,2.87763549,2558.0,2557.8,0.3]
[1646727518929,2.90597487,2558.0,2557.8,0.3]
[1646727519126,2.90597487,2558.0,2557.1,0.02068879]
[1646727519127,0.20454791,2557.9,2557.5,0.00508077]
[1646727519326,0.2412972,2557.7,2557.5,0.00508077]
[1646727519525,1.72397361,2557.6,2557.5,0.00508077]
[1646727520225,1.72397361,2557.6,2557.3,2.34973573]
[1646727520429,0.97832,2557.5,2557.4,0.00508053]
[1646727520626,1.46932,2557.5,2557.4,0.00508053]
[1646727520828,2.46932,2557.5,2557.4,0.00508053]
[1646727521238,1.46932,2557.5,2557.4,0.00508053]
[1646727521434,0.43688487,2558.0,2557.3,2.34973573]
[1646727521435,0.491,2557.9,2557.3,2.34973573]
[1646727521631,0.491,2557.9,2557.3,0.00508014]
[1646727521632,0.00507919,2557.8,2557.3,0.00508014]
[1646727522231,0.00507919,2557.8,2557.7,8.00090809]
[1646727522496,4.991,2557.9,2557.7,8.00090809]
[1646727522895,0.00507927,2557.8,2557.7,8.00090809]
[1646727523696,0.491,2557.9,2557.7,8.00090809]
[1646727523897,1.0,2557.8,2557.7,9.11092075]
[1646727524298,0.49607929,2557.9,2557.7,9.11092075]
[1646727524498,0.97813,2557.8,2557.7,8.00090809]
[1646727524699,0.97813,2557.8,2557.5,0.00508009]
[1646727524897,1.97813,2557.8,2557.5,2.34973573]
[1646727525099,0.491,2557.7,2557.5,0.00508018]
[1646727525302,1.491,2557.7,2557.5,0.00508018]
[1646727525501,1.95673,2557.6,2557.5,0.00508018]
[1646727525703,3.44773,2557.6,2557.5,0.00508018]
[1646727525902,1.491,2557.6,2557.5,0.00508018]
[1646727526101,1.491,2557.6,2557.4,2.34973573]
[1646727526102,0.491,2557.6,2557.4,2.34973573]
[1646727526348,1.491,2557.6,2557.4,2.34973573]
[1646727526544,1.491,2557.6,2557.4,2.3548158]
[1646727526545,4.5,2557.5,2557.4,2.3548158]
[1646727526746,4.991,2557.5,2557.4,2.3548158]
[1646727526947,6.46931,2557.5,2557.4,2.3548158]
[1646727527347,9.46931,2557.5,2557.4,2.34973573]
[1646727527546,5.96931,2557.5,2557.4,2.34973573]
[1646727527747,4.96931,2557.5,2557.4,2.34973573]
[1646727528149,5.96931,2557.5,2557.4,2.34973573]
[1646727528549,5.96931,2557.5,2557.3,5.65117236]
[1646727528750,5.96931,2557.5,2557.3,5.65625254]
[1646727528950,1.0,2557.4,2557.3,5.65625254]
[1646727529152,1.491,2557.4,2557.3,8.00598827]
[1646727529350,1.491,2557.4,2557.3,2.35481591]
[1646727529751,1.491,2557.4,2557.3,2.34973573]
[1646727530985,1.491,2557.4,2557.2,0.3]
[1646727531182,1.491,2557.4,2557.2,0.00508029]
[1646727531183,1.95706,2557.3,2557.2,0.00508029]
[1646727531385,6.94806,2557.3,2557.2,0.00508029]
[1646727532182,7.92672,2557.3,2556.6,8.39210809]
[1646727532381,0.97866,2557.1,2556.7,0.0203247]
[1646727532585,1.0,2556.9,2556.7,0.0203247]
[1646727532787,1.491,2556.8,2556.7,0.0203247]
[1646727533386,1.491,2556.8,2556.6,8.00090809]
[1646727533387,1.46963,2556.8,2556.6,8.00090809]
[1646727533589,1.46963,2556.8,2556.6,8.00598907]
[1646727534031,0.491,2556.8,2556.6,8.00598907]
[1646727534629,1.4695,2556.8,2556.6,8.00090809]
[1646727534929,1.4695,2556.8,2556.6,8.00598913]
[1646727535134,1.4695,2556.8,2556.6,8.98447913]
[1646727535335,0.491,2556.8,2556.6,8.98447913]
[1646727535734,0.491,2556.8,2556.6,8.97939809]
[1646727535934,0.491,2556.8,2556.6,8.98447914]
[1646727536333,1.46951,2556.8,2556.6,8.00598914]
[1646727536835,1.46951,2556.8,2556.6,8.00090809]
[1646727537236,1.46951,2556.8,2556.6,8.00598914]
[1646727538102,1.46951,2556.8,2556.6,8.00090809]
[1646727538305,1.46951,2556.8,2556.6,8.00598914]
[1646727538708,0.01997474,2556.7,2556.6,8.00598914]
[1646727539104,0.01997474,2556.7,2556.6,0.00508105]
[1646727539105,1.51097474,2556.7,2556.6,0.00508105]
[1646727539305,1.51097474,2556.7,2556.4,2.34973573]
[1646727539704,1.0,2556.6,2556.5,0.00508111]
[1646727539903,1.491,2556.6,2556.5,0.00508111]
[1646727540502,1.491,2556.6,2556.4,2.34973573]
[1646727540707,0.97875,2556.5,2556.4,2.34973573]
[1646727540903,2.46975,2556.5,2556.4,2.35481695]
[1646727541738,2.46975,2556.5,2556.4,2.34973573]
[1646727541937,6.37843621,2556.5,2556.4,2.34973573]
[1646727542939,10.27843621,2556.5,2556.4,2.34973573]
[1646727544144,9.27843621,2556.5,2556.4,2.34973573]
[1646727544341,9.29837388,2556.5,2556.4,2.34973573]
[1646727545783,10.29837388,2556.5,2556.4,2.34973573]
[1646727546387,10.29837388,2556.5,2556.4,3.573e-05]
[1646727546589,10.29837388,2556.5,2555.7,6.82117236]
[1646727546590,11.48137388,2556.5,2555.7,6.82117236]
[1646727546786,11.48137388,2556.5,2556.3,0.00508139]
[1646727546989,2.183,2556.4,2556.3,0.00508139]
[1646727547185,1.183,2556.2,2555.9,0.02032862]
[1646727547385,2.16202,2556.0,2555.9,0.02032862]
[1646727547584,2.65302,2556.0,2555.9,0.02032862]
[1646727547786,3.65302,2556.0,2555.6,1.13280749]
[1646727547986,3.65302,2556.0,2555.6,2.11182749]
[1646727548286,2.65302,2556.0,2555.6,2.11182749]
[1646727548487,2.183,2555.7,2555.6,2.41182749]
[1646727548738,2.674,2555.7,2555.6,2.41182749]
[1646727549137,2.674,2555.7,2555.6,1.27902]
[1646727550139,2.674,2555.7,2555.6,1.17599414]
[1646727550337,2.674,2555.7,2555.6,0.87599414]
[1646727551539,6.574,2555.7,2555.6,0.87599414]
[1646727554086,6.59378935,2555.7,2555.6,0.87599414]
[1646727556534,5.10278935,2555.7,2555.6,0.87599414]
[1646727556938,4.37802136,2555.7,2555.6,1.26929414]
[1646727557135,4.37802136,2555.7,2555.6,0.87599414]
[1646727559643,1.95765,2556.2,2555.7,5.3933]
[1646727559644,1.0,2556.2,2555.7,5.3933]
[1646727559843,0.00096,2556.6,2556.1,5.65117236]
[1646727560087,4.28798972,2556.7,2556.5,5.65117236]
[1646727560287,1.0,2556.8,2556.5,5.65117236]
[1646727560488,1.174,2556.9,2556.5,5.65117236]
[1646727560891,1.174,2556.9,2556.8,5.65117236]
[1646727561094,1.174,2556.9,2556.6,1.12440778]
[1646727561095,0.9785,2556.9,2556.6,1.12440778]
[1646727561392,0.9785,2556.9,2556.7,0.3]
[1646727561395,1.9785,2556.9,2556.7,0.3]
[1646727561594,2.4695,2556.9,2556.6,1.12440778]
[1646727561793,1.0,2556.8,2556.6,1.12440778]
[1646727561996,1.95732,2556.7,2556.5,5.65117236]
[1646727562195,1.95732,2556.7,2555.7,3.91409536]
[1646727562196,0.491,2556.6,2556.1,2.8472]
[1646727562493,0.491,2556.6,2555.7,3.91454236]
[1646727562494,0.9789,2556.5,2556.2,5.65606898]
[1646727562694,0.491,2556.4,2556.2,5.65606898]
[1646727562894,1.0,2556.3,2556.2,5.65606898]
[1646727563094,1.0,2556.3,2556.2,6.6110907]
[1646727563294,1.0,2556.3,2556.2,6.60619408]
[1646727563735,1.0,2556.3,2556.2,5.65117236]
[1646727563936,1.491,2556.3,2556.2,5.65117236]
[1646727564737,1.491,2556.3,2556.1,0.00507201]
[1646727564738,0.97894,2556.2,2556.1,0.00507201]
[1646727564939,1.46994,2556.2,2556.1,0.00507201]
[1646727565338,2.46994,2556.2,2556.1,0.00507201]
[1646727565738,2.46994,2556.2,2555.9,1.07941001]
[1646727565937,2.46994,2556.2,2555.8,5.65117236]
[1646727566138,2.46994,2556.2,2556.0,0.00508857]
[1646727566537,2.46994,2556.2,2555.8,5.64984856]
[1646727566738,2.46894,2556.2,2555.8,5.64984856]
[1646727567040,2.46894,2556.2,2555.8,5.64340681]
[1646727567237,2.46894,2556.2,2555.9,1.07106222]
[1646727567694,1.0,2556.1,2555.9,1.07106222]
[1646727567896,1.46894,2556.2,2555.9,1.07106222]
[1646727568495,1.46894,2556.2,2556.1,5.64340681]
[1646727568897,1.46894,2556.2,2555.9,1.07106222]
[1646727569699,1.46894,2556.2,2555.9,1.07645049]
[1646727570697,1.46894,2556.2,2555.9,1.07106222]
[1646727570898,1.46894,2556.2,2555.9,1.07645049]
[1646727571737,1.46894,2556.2,2556.1,5.64340681]
[1646727572642,0.97794,2556.2,2556.1,5.64340681]
[1646727572847,1.0,2556.6,2556.1,5.64340681]
[1646727573045,1.0,2556.6,2556.5,5.64340681]
[1646727573244,3.9,2556.7,2556.6,1.00782799]
[1646727573644,3.9,2556.7,2556.5,5.64340681]
[1646727573844,3.9,2556.7,2556.2,5.64340681]
[1646727574245,1.97874,2556.6,2556.2,5.64340681]
[1646727574445,0.491,2556.5,2556.2,5.64340681]
[1646727574747,1.0,2556.4,2556.2,5.64340681]
[1646727574983,1.491,2556.3,2556.2,5.64340681]
[1646727576390,1.46975,2556.3,2556.2,5.64340681]
[1646727578294,2.46975,2556.3,2556.2,5.64340681]
[1646727578938,2.46975,2556.3,2555.8,1.1882]
[1646727579136,2.46975,2556.3,2555.7,7.35044217]
[1646727579137,0.97897,2556.1,2555.7,7.35044217]
[1646727579339,0.97897,2556.1,2555.9,0.00521815]
[1646727579340,4.991,2556.0,2555.9,0.00521815]
[1646727579536,5.18656751,2556.0,2555.9,0.00521815]
[1646727580141,5.18656751,2556.0,2555.7,1.70703536]
[1646727580337,5.18656751,2556.0,2555.7,3.536e-05]
[1646727580338,8.42396751,2556.0,2555.7,3.536e-05]
[1646727580637,7.42396751,2556.0,2555.8,0.005218]
[1646727580840,3.71658373,2555.9,2555.8,0.005218]
[1646727581038,5.20758373,2555.9,2555.8,0.005218]
[1646727581443,5.20758373,2555.9,2555.7,3.536e-05]
[1646727581444,0.97916,2555.8,2555.7,3.536e-05]
[1646727581642,0.97916,2555.8,2555.7,8.65e-06]
[1646727581643,4.97016,2555.8,2555.7,8.65e-06]
[1646727581850,6.27016,2555.8,2555.3,0.02029621]
[1646727582042,0.24034383,2555.6,2555.3,0.02029621]
[1646727582244,1.0,2555.4,2555.3,0.02029621]
[1646727582484,1.491,2555.4,2555.3,0.02029621]
[1646727582690,0.97935,2555.3,2554.8,5.64340681]
[1646727582888,0.77083446,2555.2,2554.8,5.64340681]
[1646727583087,1.0,2554.9,2554.8,5.64340681]
[1646727583287,1.491,2554.9,2554.8,5.64340681]
[1646727583888,3.44972,2554.9,2554.6,2.52028]
[1646727584289,1.0,2554.7,2554.6,2.52028]
[1646727584490,1.491,2554.7,2554.6,2.52028]
[1646727585494,4.991,2554.7,2554.6,2.52028]
[1646727585892,4.991,2554.7,2554.5,5.64879673]
[1646727585893,5.5,2554.6,2554.1,0.02156291]
[1646727586095,0.9797,2554.4,2554.1,0.02156291]
[1646727586342,0.9797,2554.4,2553.5,1.9591623]
[1646727586343,0.5,2554.1,2553.5,1.9591623]
[1646727586549,0.5,2554.1,2553.3,19.0]
[1646727586550,0.5,2553.9,2553.3,19.0]
[1646727586745,1.5,2553.7,2553.3,19.0]
[1646727586946,0.5,2553.5,2553.3,19.0]
[1646727587246,3.99556751,2554.0,2553.3,19.0]
[1646727587247,1.991,2553.4,2553.3,19.0]
[1646727587443,5.0,2553.4,2553.3,19.0]
[1646727587644,4.0,2553.4,2553.3,19.0]
[1646727588443,4.0,2553.4,2553.3,19.9984697]
[1646727589646,2.29049166,2553.4,2553.3,19.9984697]
[1646727590086,0.684,2553.4,2553.3,19.9984697]
[1646727591084,0.684,2553.7,2553.3,20.3917697]
[1646727591688,1.1958,2554.3,2553.3,20.3917697]
[1646727591888,3.5,2554.1,2553.6,0.3933]
[1646727592089,3.9,2553.7,2553.6,0.3933]
[1646727592488,3.9,2553.7,2553.6,0.39853995]
[1646727593492,3.9,2553.7,2553.6,0.3933]
[1646727594754,3.9,2553.7,2553.5,0.9794408]
[1646727594954,3.9,2553.7,2553.5,1.37783918]
[1646727595756,3.9,2553.7,2553.5,1.3227408]
[1646727596154,3.9,2553.7,2553.5,0.93453924]
[1646727597155,3.9,2553.7,2553.5,0.9294408]
[1646727597356,3.9,2553.7,2553.5,0.93453924]
[1646727598198,3.9,2553.7,2553.5,0.9294408]
[1646727598401,3.9,2553.7,2553.5,0.93437669]
[1646727598696,3.9,2553.7,2553.5,1.32767669]
[1646727598898,3.9,2553.7,2553.5,1.17767669]
[1646727599296,3.9,2553.7,2553.5,0.78437669]
[1646727599497,3.9,2553.7,2553.5,1.1727408]
[1646727599697,3.9,2553.7,2553.5,1.17767669]
[1646727599895,3.9,2553.7,2553.5,0.78437669]
[1646727600296,3.9,2553.7,2553.6,0.3933]
[1646727600900,3.9,2553.7,2553.5,0.7794408]
[1646727601100,3.9,2553.7,2553.5,0.78437669]
[1646727601368,3.9,2553.7,2553.5,1.17767669]
[1646727601968,0.2628,2554.2,2553.8,0.3933]
[1646727602166,0.2628,2554.2,2554.0,1.37251]
[1646727602372,4.1628,2554.2,2554.0,0.3933]
[1646727602771,4.1628,2554.2,2553.8,5.35171]
[1646727602972,4.1628,2554.2,2553.8,1.95841]
[1646727603172,4.1628,2554.2,2554.0,0.9791749]
[1646727603371,4.1628,2554.2,2554.0,0.00481556]
[1646727603967,4.1628,2554.2,2553.8,0.34811556]
[1646727604379,4.1628,2554.2,2554.0,0.34811556]
[1646727604569,1.0,2555.1,2554.0,4.33235252]
[1646727604775,0.5869,2555.2,2554.4,0.34811556]
[1646727604987,0.3912,2555.2,2554.6,0.34811556]
[1646727605189,0.3912,2555.2,2554.6,3.34811556]
[1646727605388,0.18909358,2555.4,2554.8,3.34811556]
[1646727605590,0.1955,2555.8,2555.3,0.34811556]
[1646727605792,3.5,2555.8,2555.3,6.84811556]
[1646727605988,0.00096,2556.4,2555.4,0.18695337]
[1646727606192,0.00096,2556.6,2555.6,0.18695337]
[1646727606590,0.1956,2556.5,2555.9,0.18695337]
[1646727606789,3.5,2556.5,2555.9,0.18695337]
[1646727607389,0.00096,2557.0,2555.9,0.18695337]
[1646727607590,0.1955,2557.1,2556.3,0.18695337]
[1646727607592,0.1955,2556.9,2556.3,0.18695337]
[1646727607789,0.1955,2557.0,2556.4,1.30391596]
[1646727607990,0.1955,2557.3,2556.4,1.30391596]
[1646727608192,0.1955,2557.3,2557.1,0.18695337]
[1646727608393,0.1955,2557.3,2556.4,0.18695337]
[1646727608837,0.1955,2557.3,2557.2,0.18695337]
[1646727609036,0.1955,2557.3,2557.2,0.16825804]
[1646727610037,1.95666,2557.7,2557.3,5.0]
[1646727610349,1.1099,2558.3,2557.5,0.16825804]
[1646727611139,1.1099,2558.3,2558.2,0.16825804]
[1646727611341,1.1099,2558.3,2558.2,1.14598854]
[1646727612692,0.491,2559.0,2558.3,5.5]
[1646727612693,0.5,2559.0,2558.3,5.5]
[1646727612890,0.5,2559.0,2558.5,0.16825804]
[1646727613092,0.57803919,2559.5,2558.5,0.16825804]
[1646727613293,0.26668894,2559.3,2558.4,0.16825804]
[1646727613492,0.491,2559.2,2558.4,0.16825804]
[1646727613695,1.05463843,2558.5,2558.4,0.16825804]
[1646727614096,1.54563843,2558.5,2558.4,0.16825804]
[1646727614295,6.44563843,2558.5,2557.9,0.16825804]
[1646727614797,1.0,2558.4,2557.9,0.16825804]
[1646727615396,0.00539673,2558.3,2557.9,0.16825804]
[1646727616095,0.00539673,2558.3,2557.8,0.16825804]
[1646727616096,1.04962571,2558.1,2557.8,0.16825804]
[1646727616546,4.47816,2558.0,2557.8,0.16825804]
[1646727616737,5.96916,2558.0,2557.8,0.16825804]
[1646727616938,5.96916,2558.0,2557.4,0.16825804]
[1646727617139,3.5,2557.9,2557.4,0.16825804]
[1646727617338,1.0,2557.8,2557.5,0.16825804]
[1646727617543,1.491,2557.8,2557.5,0.16825804]
[1646727617741,1.0,2557.6,2557.5,0.16825804]
[1646727617943,0.00521645,2557.8,2556.9,0.30645801]
[1646727618349,0.00521645,2557.8,2557.5,0.16825804]
[1646727618750,4.5,2558.2,2557.5,0.16825804]
[1646727618949,0.96277696,2558.1,2557.7,0.16825804]
[1646727620191,0.00521958,2558.0,2557.7,0.16825804]
[1646727620393,0.00521958,2558.0,2557.5,0.16825804]
[1646727620394,5.46175958,2558.0,2557.5,0.16825804]
[1646727620594,0.23538981,2557.9,2557.5,0.16825804]
[1646727620795,1.491,2557.8,2557.5,0.16825804]
[1646727620994,1.0,2557.6,2557.5,0.16825804]
[1646727621294,0.491,2557.8,2557.0,1.12713267]
[1646727621295,0.491,2557.8,2557.1,0.16825804]
[1646727621498,1.26960233,2558.0,2557.1,0.16825804]
[1646727621499,0.00096,2557.9,2557.1,0.16825804]
[1646727621696,1.76060233,2558.0,2557.3,0.16825804]
[1646727621697,0.76060233,2558.0,2557.3,0.16825804]
[1646727622095,1.97819,2558.1,2557.3,0.16825804]
[1646727622096,1.0,2558.1,2557.3,0.16825804]
[1646727622295,1.0,2557.8,2557.7,0.16825804]
[1646727622495,3.9,2558.5,2557.7,0.16825804]
[1646727622795,3.9,2558.5,2557.9,0.16825804]
[1646727622997,0.20423618,2559.1,2557.9,0.16825804]
[1646727622998,2.44678,2558.9,2558.1,0.16825804]
[1646727623494,1.0,2558.7,2558.3,0.16825804]
[1646727623939,0.88906619,2558.5,2558.3,0.16825804]
[1646727624141,0.97796,2558.5,2558.3,0.16825804]
[1646727624342,0.97796,2558.5,2557.9,0.16825804]
[1646727624541,1.0,2558.7,2558.3,0.16825804]
[1646727624942,1.95578,2558.9,2558.3,0.16825804]
[1646727625143,1.0,2559.0,2558.4,1.06586963]
[1646727625144,0.90852047,2559.0,2558.4,1.06586963]
[1646727625443,0.90852047,2559.0,2558.0,0.16825804]
[1646727625646,0.90852047,2559.0,2558.3,0.16825804]
[1646727625850,0.90948047,2559.0,2558.3,0.16825804]
[1646727626043,0.90852047,2559.0,2558.3,0.16825804]
[1646727626244,0.98015137,2558.6,2558.3,0.16825804]
[1646727626444,1.98015137,2558.6,2557.8,0.16825804]
[1646727626745,1.0,2558.5,2557.8,0.16825804]
[1646727627145,1.0,2558.3,2557.8,0.16825804]
[1646727627349,0.00221137,2558.3,2557.8,0.16825804]
[1646727627592,0.00221137,2558.3,2557.9,0.16825804]
[1646727627792,1.0,2558.5,2557.9,0.16825804]
[1646727627993,1.90959468,2558.5,2557.9,0.16825804]
[1646727628194,1.0,2558.5,2557.9,0.16825804]
[1646727628397,1.0,2558.6,2557.9,0.16825804]
[1646727628595,1.491,2558.8,2557.9,0.16825804]
[1646727628995,1.0,2558.7,2558.3,0.16825804]
[1646727629196,1.04343855,2558.3,2558.1,0.16825804]
[1646727629397,0.0168258,2558.2,2558.1,0.16825804]
[1646727629798,1.5078258,2558.2,2558.1,0.16825804]
[1646727630197,1.5078258,2558.2,2557.8,0.16825804]
[1646727630403,2.4860058,2558.2,2557.8,0.16825804]
[1646727630999,1.0,2557.9,2557.8,0.16825804]
[1646727631239,0.491,2558.0,2557.5,0.16825804]
[1646727631645,1.0,2557.9,2557.5,0.16825804]
[1646727632042,0.0168258,2558.2,2557.8,1.23912213]
[1646727632253,0.0177858,2558.2,2557.8,1.23912213]
[1646727632447,0.0168258,2558.2,2557.8,1.23912213]
[1646727632648,0.0168258,2558.2,2557.6,0.16825804]
[1646727633148,0.9949358,2558.2,2557.6,0.16825804]
[1646727633346,0.9949358,2558.2,2557.8,0.16825804]
[1646727633548,0.8720608,2558.1,2557.8,0.16825804]
[1646727633948,2.3630608,2558.1,2557.8,0.16825804]
[1646727634447,2.3630608,2558.1,2557.3,0.16825804]
[1646727634647,0.97822,2558.0,2557.6,0.16825804]
[1646727634851,1.01122481,2557.7,2557.6,0.16825804]
[1646727635095,2.50222481,2557.7,2557.6,1.14656684]
[1646727635496,0.491,2557.7,2557.6,1.14656684]
[1646727636500,1.0,2558.0,2557.6,2.34089403]
[1646727636703,3.9168258,2558.2,2557.6,2.34089403]
[1646727637101,5.08041987,2558.2,2557.6,2.34089403]
[1646727637503,5.08041987,2558.2,2557.6,1.14656684]
[1646727637901,6.08041987,2558.2,2557.6,1.14656684]
[1646727638201,0.491,2558.1,2557.6,1.14656684]
[1646727638402,1.46915,2558.1,2557.6,1.14656684]
[1646727638742,1.05145633,2557.8,2557.4,0.16825804]
[1646727638942,0.491,2557.7,2557.4,0.16825804]
[1646727639140,1.491,2557.7,2557.4,0.16825804]
[1646727639541,0.491,2557.7,2557.4,1.14649104]
[1646727639843,3.9168258,2558.2,2557.4,1.14649104]
[1646727639844,5.4078258,2558.2,2557.4,1.14649104]
[1646727640043,3.9168258,2558.2,2557.4,1.14649104]
[1646727640641,3.9168258,2558.2,2557.6,0.16825804]
[1646727640842,3.9168258,2558.2,2558.1,0.16825804]
[1646727641641,3.9168258,2558.2,2557.9,0.16825804]
[1646727641842,1.16608328,2558.0,2557.9,0.16825804]
[1646727642591,2.14427328,2558.0,2557.9,0.16825804]
[1646727642790,2.14427328,2558.0,2557.8,0.16825804]
[1646727643590,4.8949058,2558.2,2557.8,0.16825804]
[1646727643791,3.9168258,2558.2,2557.8,2.12421514]
[1646727644590,3.9168258,2558.2,2558.0,0.16825804]
[1646727645195,3.9168258,2558.2,2557.9,0.16825804]
[1646727646241,3.9168258,2558.2,2558.1,0.16825804]
[1646727646541,3.9,2558.2,2558.1,0.16825804]
[1646727646741,0.00096,2558.7,2558.3,0.16825804]
[1646727646940,4.66093919,2559.5,2558.3,0.16825804]
[1646727646941,0.5,2558.5,2558.3,0.16825804]
[1646727647144,1.19556751,2559.2,2558.3,0.16825804]
[1646727647145,0.00096,2559.1,2558.3,0.16825804]
[1646727647343,1.21184305,2558.7,2558.3,1.37745192]
[1646727647546,1.21184305,2558.7,2558.4,0.16825804]
[1646727648548,2.21184305,2558.7,2558.1,0.16825804]
[1646727648948,1.08767313,2558.3,2558.2,0.16825804]
[1646727649548,1.08767313,2558.3,2558.1,0.16825804]
[1646727650187,2.06567313,2558.3,2558.1,0.16825804]
[1646727650392,3.06567313,2558.3,2558.1,0.16825804]
[1646727651190,2.08767313,2558.3,2558.1,0.16825804]
[1646727651993,2.08767313,2558.3,2558.1,1.14620514]
[1646727652192,2.08767313,2558.3,2558.2,0.16825804]
[1646727652593,2.57867313,2558.3,2558.1,0.16825804]
[1646727652794,0.97815,2558.2,2558.1,0.16825804]
[1646727652996,1.46915,2558.2,2558.1,0.16825804]
[1646727653393,5.1682,2558.1,2557.2,0.1953]
[1646727653594,0.71322483,2558.0,2557.5,0.84075084]
[1646727653843,0.97816,2557.9,2557.5,0.84075084]
[1646727654042,1.0,2557.6,2557.5,0.84075084]
[1646727654246,1.491,2557.6,2557.5,0.84075084]
[1646727654447,2.58800275,2557.6,2557.5,0.84075084]
[1646727654645,2.58800275,2557.6,2556.9,0.13819997]
[1646727654846,2.58800275,2557.6,2557.1,0.84075084]
[1646727655045,1.0,2557.5,2557.1,0.84075084]
[1646727655246,0.491,2557.5,2557.1,0.84075084]
[1646727655648,1.0,2557.4,2557.1,0.84075084]
[1646727656247,0.87160146,2557.2,2557.1,0.84075084]
[1646727656651,2.36260146,2557.2,2557.1,0.84075084]
[1646727657049,1.491,2557.2,2557.1,0.84075084]
[1646727658090,2.3712273,2557.2,2557.1,0.84075084]
[1646727658490,2.3712273,2557.2,2557.1,0.83430984]
[1646727659292,2.3712273,2557.2,2557.1,0.83001901]
[1646727659791,3.5,2557.1,2556.7,0.1953]
[1646727659992,0.491,2557.0,2556.7,0.1953]
[1646727660192,1.0,2556.9,2556.3,1.97728445]
[1646727660393,0.491,2556.8,2556.3,0.02037395]
[1646727660594,1.491,2556.8,2556.3,0.02037395]
[1646727660995,0.97867,2556.5,2556.2,0.9787065]
[1646727661636,1.0,2556.8,2556.2,0.9787065]
[1646727661839,0.04536888,2557.3,2556.2,0.9787065]
[1646727662138,0.9785,2557.0,2556.2,4.4787065]
[1646727662341,0.491,2557.1,2556.2,0.9787065]
[1646727662542,0.491,2557.1,2556.7,0.9783698]
[1646727663347,1.46944,2557.1,2556.7,0.9783698]
[1646727663544,1.46944,2557.1,2556.6,1.9567395]
[1646727663545,2.46944,2557.1,2556.6,1.9567395]
[1646727663947,1.0,2557.0,2556.6,1.9567395]
[1646727664145,0.01858029,2556.7,2556.6,1.9567395]
[1646727664846,0.491,2556.9,2556.6,1.9567395]
[1646727665091,3.9,2557.0,2556.6,1.9567395]
[1646727665994,0.491,2557.5,2556.6,1.9567395]
[1646727665995,0.97844,2557.1,2556.6,1.9567395]
[1646727666591,1.0,2556.9,2556.6,1.9567395]
[1646727666791,1.491,2556.9,2556.6,1.9567395]
[1646727666994,0.491,2556.9,2556.6,1.9567395]
[1646727667191,0.9786,2556.8,2556.6,1.9567395]
[1646727668195,1.97846,2557.0,2556.6,1.9567395]
[1646727669445,2.01002999,2556.8,2556.6,1.9567395]
[1646727669647,0.97856,2556.8,2556.6,1.9567395]
[1646727670347,2.44819,2556.9,2556.6,1.9567395]
[1646727670549,5.94819,2556.9,2556.5,1.9567773]
[1646727670750,5.94819,2556.9,2556.3,0.9787204]
[1646727670751,1.03868032,2556.6,2556.3,0.9787204]
[1646727670948,2.95719,2556.9,2556.3,0.9787204]
[1646727671750,1.95729,2556.8,2556.3,0.9787204]
[1646727671950,0.491,2556.8,2556.3,0.9787204]
[1646727672149,1.0,2557.0,2556.7,0.93573357]
[1646727672349,0.491,2556.9,2556.7,1.91416277]
[1646727672600,0.97846,2557.1,2556.7,1.91416277]
[1646727672803,0.491,2557.0,2556.7,1.91416277]
[1646727673602,1.0,2557.3,2556.7,1.91416277]
[1646727673805,0.97835,2557.4,2556.7,2.21416277]
[1646727674601,2.44776,2557.5,2556.7,1.2784292]
[1646727674802,6.34776,2557.5,2556.9,1.9570308]